[Event "Czech Extraliga 2023-24"]
[Site "Czech Republic"]
[Date "2024.02.11"]
[Round "8.1"]
[White "Korobov, Anton"]
[Black "Gumularz, Szymon"]
[Result "1/2-1/2"]
[ECO "A13"]
[WhiteElo "2663"]
[BlackElo "2591"]
[Annotator "TA"]
[PlyCount "60"]
[EventDate "2023.10.14"]
[EventCountry "CZE"]
[SourceTitle "playchess.com"]
[Source "ChessBase"]
[SourceQuality "1"]
[TimeControl "40/5400+30:1800+30"]

{[%evp 9,60,11,33,29,26,28,27,28,27,32,37,0,0,0,0,0,0,0,0,0,0,-8,-19,-41,-25,-54,-7,-40,-20,-23,0,0,0,-6,0,0,0,9,11,6,14,12,35,0,0,0,0,0,0,0,0,0,0]} 1. c4 {[%emt 0:00:03]} e6 {[%emt 0:00:09]} 2. Nf3 {[%emt 0:01:03]} d5 {[%emt 0:00:13]} 3. g3 {[%emt 0:00:11]} Nf6 {[%emt 0:02:19]} 4. Bg2 {[%emt 0:01:49]} d4 {[%emt 0:00:11]} 5. O-O {[%emt 0:00:33]} Nc6 {[%emt 0:00:07]} 6. e3 {[%emt 0:01:21][%cal Be2e3,Be3d4][%mdl 32]} Bc5 {[%emt 0:05:32] [#]} 7. b4 $1 {[%emt 0:03:38]} Bxb4 {[%emt 0:00:55]} 8. exd4 {[%emt 0:00:32] White has an edge.} O-O {[%emt 0:00:11]} 9. Bb2 {[%emt 0:01:11]} Rb8 {[%emt 0:03:00]} 10. Na3 {[%emt 0:07:11]} Bxa3 {[%emt 0:09:42]} 11. Bxa3 {[%emt 0:00:02]} Re8 {[%emt 0:00:07]} 12. Ne5 {[%emt 0:16:16]} Nxd4 {[%emt 0:18:26]} 13. Bc5 $1 {[%emt 0:02:18]} Nf5 {[%emt 0:00:26]} 14. Bxa7 {[%emt 0:02:25] A strong pair of Bishops.} Ra8 {[%emt 0:00:06]} 15. Be3 {[%emt 0:00:15]} Nd7 {[%emt 0:04:26][%cal Bf6d7,Bd7e5,Be5c4][%mdl 32]} 16. Nf3 {[%emt 0:09:12]} e5 {[%emt 0:01:39]} 17. Re1 {[%emt 0:11:33]} h6 {[%emt 0:13:46]} (17... e4 $15 18. Nd4 Ne5 19. Nxf5 Bxf5) 18. Qc2 {[%emt 0:03:46]} e4 {[%emt 0:02:15]} 19. Nd4 {[%emt 0:02:51]} Ne5 {[%emt 0:01:24]} (19... Nxe3 {simplifies} 20. Rxe3 Nf6 21. Qc3 Ra4) 20. Qxe4 {[%emt 0:03:17]} Nxc4 {[%emt 0:00:47]} 21. Nc6 {[%emt 0:02:01]} Ncd6 {[%emt 0:03:49]} 22. Nxd8 {[%emt 0:03:02]} Nxe4 {[%emt 0:00:10]} 23. Bf4 $1 {[%emt 0:01:10][%csl LRc7,LRe4]} Rxd8 {[%emt 0:00:55]} 24. Rxe4 {[%emt 0:00:58]} Be6 {[%emt 0:04:00]} 25. Rb4 {[%emt 0:10:03]} Nd4 {[%emt 0:03:37] [#] Strongly threatening ...Nc2.} 26. Bxc7 {[%emt 0:00:46]} (26. Bxb7 $5 Nc2 27. Bxa8 Rxa8 28. Rbb1 Nxa1 29. Rxa1 Rxa2 30. Rxa2 Bxa2 31. Bxc7 $15) 26... Nc2 {[%emt 0:00:08] The position is equal.} (26... Ne2+ 27. Kf1 Rxd2 28. a4 $14 (28. Bxb7 Rdxa2 29. Rxa2 Rxa2 $14) (28. Rxb7 Bc4 $11)) 27. Bxd8 {[%emt 0:00:31]} (27. Rxb7 $2 {perishes.} Nxa1 28. Bxd8 Rxd8 $19) 27... Rxd8 {[%emt 0:00:14]} 28. Rab1 {[%emt 0:00:28]} Nxb4 {[%emt 0:00:21]} 29. Rxb4 {[%emt 0:00:06]} Rxd2 {[%emt 0:00:02] ( -> ...Rd1+)} 30. h4 {[%emt 0:00:21]} Bxa2 {[%emt 0:00:12] Weighted Error Value: White=0.07 (flawless) /Black=0.06 (flawless) .  Mistake:       	---       	Black=1      Inaccurate:     	White=4     	---        OK:         	White=11    	Black=17     Best:        	---       	Black=1      Strong:       	White=2     	---} 1/2-1/2

[Event "Czech Extraliga 2023-24"]
[Site "Czech Republic"]
[Date "2024.02.11"]
[Round "8.1"]
[White "Piorun, Kacper"]
[Black "Neiksans, Arturs"]
[Result "1-0"]
[ECO "E10"]
[WhiteElo "2597"]
[BlackElo "2588"]
[Annotator "RC"]
[PlyCount "175"]
[EventDate "2023.10.14"]
[EventCountry "CZE"]
[SourceTitle "playchess.com"]
[Source "ChessBase"]
[SourceQuality "1"]
[TimeControl "40/5400+30:1800+30"]

1. d4 {[%emt 0:00:06]} Nf6 {[%emt 0:00:20]} 2. c4 {[%emt 0:00:09]} e6 {[%emt 0:00:09]} 3. Nf3 {[%emt 0:00:17]} a6 {[%emt 0:01:15]} 4. Bg5 {[%emt 0:07:13]} d5 {[%emt 0:03:56]} 5. cxd5 {[%emt 0:00:41]} exd5 {[%emt 0:00:06]} 6. Nc3 {[%emt 0:00:19]} Be6 {[%emt 0:00:27]} 7. e3 {[%emt 0:00:45]} Nbd7 {[%emt 0:00:10]} 8. Bd3 {[%emt 0:00:17]} h6 {[%emt 0:00:31]} 9. Bh4 {[%emt 0:01:13]} g5 {[%emt 0:00:07]} 10. Bg3 {[%emt 0:00:04]} Nh5 {[%emt 0:00:06]} 11. Qc2 {[%emt 0:01:23]} Nxg3 {[%emt 0:01:39]} 12. fxg3 {[%emt 0:06:29]} Nb6 {[%emt 0:09:52]} 13. O-O {[%emt 0:01:06]} Bg7 {[%emt 0:02:57]} 14. Rae1 {[%emt 0:08:11]} Qd6 {[%emt 0:14:42]} 15. e4 {[%emt 0:03:26]} O-O-O {[%emt 0:04:51]} 16. e5 {[%emt 0:05:54]} Qe7 {[%emt 0:04:49]} 17. Nd1 {[%emt 0:03:01]} Kb8 {[%emt 0:09:06]} 18. Ne3 {[%emt 0:02:30]} Bf8 {[%emt 0:00:15]} 19. Rc1 {[%emt 0:15:27]} Rc8 {[%emt 0:00:56]} 20. Bf5 {[%emt 0:02:46]} c5 {[%emt 0:03:54]} 21. Qb3 {[%emt 0:04:56]} Ka7 {[%emt 0:05:01]} 22. dxc5 {[%emt 0:02:11]} Rxc5 {[%emt 0:00:08]} 23. Nd4 {[%emt 0:00:09]} Nd7 {[%emt 0:08:46]} 24. Ng4 {[%emt 0:08:56]} Bg7 {[%emt 0:10:25]} 25. Qe3 {[%emt 0:01:35]} Ka8 {[%emt 0:01:37]} 26. Rxc5 {[%emt 0:05:32]} Nxc5 {[%emt 0:00:04]} 27. b4 {[%emt 0:00:04]} Nd7 {[%emt 0:02:54]} 28. b5 {[%emt 0:02:48]} Rc8 {[%emt 0:00:20]} 29. bxa6 {[%emt 0:07:10]} bxa6 {[%emt 0:00:03]} 30. h3 {[%emt 0:01:17]} Rc4 {[%emt 0:06:48]} 31. Bd3 {[%emt 0:01:19]} Rc3 {[%emt 0:01:08]} 32. Nxe6 {[%emt 0:00:50]} fxe6 {[%emt 0:00:38]} 33. Qe2 {[%emt 0:00:43]} h5 {[%emt 0:04:22]} 34. Nf6 {[%emt 0:04:08]} Bxf6 {[%emt 0:00:05]} 35. exf6 {[%emt 0:00:05]} Nxf6 {[%emt 0:00:03]} 36. Bg6 {[%emt 0:01:32]} Rc6 {[%emt 0:01:33]} 37. Qe5 {[%emt 0:00:05]} Nd7 {[%emt 0:01:12]} 38. Qh8+ {[%emt 0:00:09]} Kb7 {[%emt 0:00:24]} 39. Rf7 {[%emt 0:03:12]} Qc5+ {[%emt 0:03:18]} 40. Kh2 {[%emt 0:00:08]} Rc7 {[%emt 0:00:10]} 41. Bxh5 {[%emt 0:05:04]} Nb6 {[%emt 0:14:35]} 42. Qe5 {[%emt 0:06:09]} Rxf7 {[%emt 0:03:02]} 43. Bxf7 {[%emt 0:00:02]} Nc4 {[%emt 0:00:10]} 44. Qxe6 {[%emt 0:04:28]} Ne3 {[%emt 0:00:26]} 45. Qd7+ {[%emt 0:01:21]} Kb6 {[%emt 0:01:15]} 46. Qd8+ {[%emt 0:00:20]} Kb5 {[%emt 0:05:11]} 47. Qxg5 {[%emt 0:02:30]} Nf1+ {[%emt 0:05:17]} 48. Kh1 {[%emt 0:00:04]} Ne3 {[%emt 0:00:04]} 49. h4 {[%emt 0:02:21]} Qc1+ {[%emt 0:02:46]} 50. Kh2 {[%emt 0:00:01]} Nf1+ {[%emt 0:00:28]} 51. Kh3 {[%emt 0:00:15]} Ne3 {[%emt 0:00:05]} 52. Be8+ {[%emt 0:05:26]} Kb6 {[%emt 0:00:45]} 53. Qd8+ {[%emt 0:00:26]} Ka7 {[%emt 0:00:45]} 54. Qd7+ {[%emt 0:00:20]} Kb8 {[%emt 0:01:04]} 55. Qd6+ {[%emt 0:00:06]} Ka7 {[%emt 0:00:10]} 56. g4 {[%emt 0:00:49]} Qh1+ {[%emt 0:01:03]} 57. Qh2 {[%emt 0:00:05]} Qc1 {[%emt 0:00:07]} 58. Bg6 {[%emt 0:02:17]} d4 {[%emt 0:01:07]} 59. h5 {[%emt 0:00:59]} Qc3 {[%emt 0:01:17]} 60. Qg3 {[%emt 0:00:42]} Qc1 {[%emt 0:00:25]} 61. Be4 {[%emt 0:02:50]} Qh1+ {[%emt 0:00:33]} 62. Qh2 {[%emt 0:00:01]} Qc1 {[%emt 0:00:07]} 63. Qd6 {[%emt 0:01:27]} Qh1+ {[%emt 0:01:20]} 64. Kg3 {[%emt 0:00:18]} Qe1+ {[%emt 0:00:33]} 65. Kf4 {[%emt 0:00:12]} Nxg2+ {[%emt 0:00:37]} 66. Bxg2 {[%emt 0:00:12]} Qf2+ {[%emt 0:00:24]} 67. Kg5 {[%emt 0:00:04]} Qxg2 {[%emt 0:00:33]} 68. Qxd4+ {[%emt 0:00:07]} Kb7 {[%emt 0:00:04]} 69. h6 {[%emt 0:00:12]} Qc2 {[%emt 0:00:46]} 70. Qg7+ {[%emt 0:00:27]} Kb8 {[%emt 0:00:09]} 71. Qg8+ {[%emt 0:00:28]} Ka7 {[%emt 0:00:12]} 72. Qf7+ {[%emt 0:00:15]} Ka8 {[%emt 0:00:05]} 73. h7 {[%emt 0:02:14]} Qd2+ {[%emt 0:00:21]} 74. Qf4 {[%emt 0:06:52]} Qd5+ {[%emt 0:00:34]} 75. Qf5 {[%emt 0:00:00]} Qd2+ {[%emt 0:00:35]} 76. Kh5 {[%emt 0:00:00]} Qh2+ {[%emt 0:00:12]} 77. Kg6 {[%emt 0:00:00]} Qd6+ {[%emt 0:00:06]} 78. Qf6 {[%emt 0:00:00]} Qd3+ {[%emt 0:00:16]} 79. Kg7 {[%emt 0:00:00]} Qd7+ {[%emt 0:00:09]} 80. Kh6 {[%emt 0:00:00]} Qd2+ {[%emt 0:00:08]} 81. g5 {[%emt 0:00:57]} Qh2+ {[%emt 0:00:05]} 82. Kg7 {[%emt 0:00:09]} Qc7+ {[%emt 0:00:03]} 83. Kf8 {[%emt 0:00:06]} Qc8+ {[%emt 0:00:46]} 84. Kf7 {[%emt 0:00:12]} Qd7+ {[%emt 0:01:34]} 85. Kg8 {[%emt 0:01:19]} Qd5+ {[%emt 0:00:20]} 86. Kf8 {[%emt 0:00:04]} Qc5+ {[%emt 0:00:11]} 87. Qe7 {[%emt 0:00:08]} Qf5+ {[%emt 0:00:18]} 88. Kg7 {[%emt 0:00:05]} 1-0

[Event "Czech Extraliga 2023-24"]
[Site "Czech Republic"]
[Date "2024.02.11"]
[Round "8.1"]
[White "Pechac, Jergus"]
[Black "Ponomariov, Ruslan"]
[Result "1/2-1/2"]
[ECO "C55"]
[WhiteElo "2575"]
[BlackElo "2647"]
[Annotator "TA"]
[PlyCount "27"]
[EventDate "2023.10.14"]
[EventCountry "CZE"]
[SourceTitle "playchess.com"]
[Source "ChessBase"]
[SourceQuality "1"]
[TimeControl "40/5400+30:1800+30"]

{[%evp 13,27,29,27,24,33,29,34,23,45,26,29,34,20,32,35,31]} 1. e4 {[%emt 0:00:04]} e5 {[%emt 0:00:15]} 2. Nf3 {[%emt 0:00:06]} Nc6 {[%emt 0:00:07]} 3. Bc4 {[%emt 0:00:05]} Nf6 {[%emt 0:00:11]} 4. d3 {[%emt 0:00:05]} Be7 {[%emt 0:00:40]} 5. O-O {[%emt 0:00:10]} O-O {[%emt 0:00:13]} 6. Re1 {[%emt 0:00:06]} d6 {[%emt 0:00:50]} 7. a4 {[%emt 0:00:11]} Na5 {[%emt 0:01:08]} 8. Ba2 {[%emt 0:00:07]} c5 {[%emt 0:00:09]} 9. c3 {[%emt 0:00:07]} Nc6 {[%emt 0:01:10]} 10. Na3 {[%emt 0:00:10]} a6 {[%emt 0:03:08][%cal Ba7a6,Ba6b5][%mdl 32]} 11. Bg5 {[%emt 0:03:33]} Rb8 {[%emt 0:09:08]} 12. Nc4 {[%emt 0:01:31]} b5 {[%emt 0:03:05]} 13. axb5 {[%emt 0:00:06]} axb5 {[%emt 0:00:05]} 14. Bxf6 {[%emt 0:03:42] Weighted Error Value: White=0.04 (flawless) /Black=0.04 (flawless) .  OK:         	White=4     	Black=2} 1/2-1/2

[Event "Czech Extraliga 2023-24"]
[Site "Czech Republic"]
[Date "2024.02.11"]
[Round "8.1"]
[White "Teclaf, Pawel"]
[Black "Warakomski, Tomasz"]
[Result "1-0"]
[ECO "A13"]
[WhiteElo "2563"]
[BlackElo "2537"]
[Annotator "TA"]
[PlyCount "91"]
[EventDate "2023.10.14"]
[EventCountry "CZE"]
[SourceTitle "playchess.com"]
[Source "ChessBase"]
[SourceQuality "1"]
[TimeControl "40/5400+30:1800+30"]

{[%evp 13,91,0,0,0,0,-19,15,11,10,16,24,12,25,12,16,33,25,39,46,37,41,52,52,54,54,62,53,73,50,66,57,71,68,76,56,33,77,66,82,76,144,129,197,192,190,195,247,186,193,195,189,198,183,176,182,189,185,182,195,194,170,164,246,141,129,124,117,139,339,332,350,362,350,323,531,517,521,518,583,566]} 1. Nf3 {[%emt 0:00:02]} d5 {[%emt 0:00:17]} 2. e3 {[%emt 0:00:05]} Nf6 {[%emt 0:00:41]} 3. c4 {[%emt 0:00:49]} e6 {[%emt 0:00:25]} 4. b3 {[%emt 0:00:05]} b6 {[%emt 0:01:09]} 5. cxd5 {[%emt 0:04:00]} exd5 {[%emt 0:00:06]} 6. Bb2 {[%emt 0:00:04] A13: English Opening: 1...e6.} Bb7 {[%emt 0:00:39]} 7. Nc3 {[%emt 0:01:47]} Nbd7 {[%emt 0:00:47]} 8. Rc1 {[%emt 0:00:07]} a6 {[%emt 0:02:07]} 9. Ne2 {[%emt 0:00:07]} Bc5 {[%emt 0:14:25]} 10. g3 $146 {[%emt 0:05:46]} ({Predecessor:} 10. a3 O-O 11. Ned4 Bxd4 12. Nxd4 c5 13. Nf5 d4 14. exd4 cxd4 15. Bxd4 Re8+ 16. Ne3 {½-½ Kobalia,M (2578)-Vescovi,G (2606) Sharjah Masters 6th 2023 (3)}) 10... O-O {[%emt 0:01:03]} 11. Bg2 {[%emt 0:01:10]} Re8 {[%emt 0:03:48]} 12. O-O {[%emt 0:02:54]} a5 {[%emt 0:01:41]} 13. Qc2 {[%emt 0:07:35]} Ba6 {[%emt 0:18:53]} 14. d3 {[%emt 0:07:30]} Bd6 {[%emt 0:00:15]} 15. Rfd1 {[%emt 0:06:20]} Rc8 {[%emt 0:02:25]} 16. Bh3 {[%emt 0:02:23]} c5 {[%emt 0:11:21]} 17. Bxf6 {[%emt 0:02:49]} Qxf6 {[%emt 0:00:54]} 18. Bxd7 {[%emt 0:06:21]} Qxf3 {[%emt 0:00:05]} 19. Nc3 {[%emt 0:00:38]} d4 $1 {[%emt 0:06:15]} 20. Qe2 {[%emt 0:00:22]} Qxe2 {[%emt 0:01:13]} 21. Nxe2 {[%emt 0:00:13]} dxe3 $1 {[%emt 0:00:04]} 22. fxe3 {[%emt 0:01:21]} Rxe3 {[%emt 0:00:09]} 23. Bxc8 {[%emt 0:00:11]} Bxc8 {[%emt 0:00:04]} 24. Nc3 {[%emt 0:14:04]} Kf8 {[%emt 0:11:26]} 25. Nd5 {[%emt 0:07:13]} Re2 {[%emt 0:01:29]} 26. Nxb6 {[%emt 0:01:11]} Bf5 {[%emt 0:10:41]} (26... Bh3 $142) 27. Rf1 $16 {[%emt 0:07:06]} Bxd3 {[%emt 0:00:41]} (27... g6 $16) 28. Rfe1 {[%emt 0:09:37]} Rxe1+ {[%emt 0:01:39]} 29. Rxe1 {[%emt 0:00:03]} Bb5 {[%emt 0:00:21]} (29... Bf5 {might work better.} 30. Rd1 Bc7) 30. Kf2 {[%emt 0:04:06]} Bc7 {[%emt 0:00:38] [#]} 31. Nd5 $1 {[%emt 0:01:50]} Bd6 {[%emt 0:00:58]} 32. Nc3 {[%emt 0:01:19]} Bc6 {[%emt 0:00:27]} 33. Ke3 {[%emt 0:00:47]} f5 {[%emt 0:02:03]} 34. Kd3 {[%emt 0:01:01]} Kf7 {[%emt 0:00:04]} 35. Kc4 {[%emt 0:00:54]} g5 {[%emt 0:00:13]} 36. Nb5 {[%emt 0:01:04]} Be7 {[%emt 0:01:35]} 37. Nc7 {[%emt 0:00:06]} Bb7 {[%emt 0:06:28] [#]} (37... h5 {was worth a try.} 38. Rf1 Bd7) 38. Ne6 {[%emt 0:03:20]} (38. Rf1 $1 $18 {[%cal Rf1f5]} Kg6 39. Kb5) 38... Ba6+ $16 {[%emt 0:00:56]} 39. Kd5 {[%emt 0:01:34]} Bb7+ {[%emt 0:00:03]} 40. Ke5 {[%emt 0:00:39]} Bc8 $2 {[%emt 0:00:03]} (40... Be4 $16 41. g4 Bf6+ 42. Kd6 Be7+ 43. Kd7 Bd3) 41. Nxc5 $18 {[%emt 0:30:44]} ({Not} 41. Kxf5 Bd6 $14) 41... h5 {[%emt 0:02:15]} (41... Bxc5 $2 {too greedy.} 42. Rc1 $18) 42. Rc1 {[%emt 0:00:00]} Bf6+ {[%emt 0:03:40]} 43. Kd6 {[%emt 0:00:00]} h4 $2 {[%emt 0:00:06]} (43... Bd8 {keeps fighting.} 44. Re1 f4 45. gxf4 gxf4) 44. Ne4 $18 {[%emt 0:00:00]} Be7+ {[%emt 0:06:37]} 45. Ke5 {[%emt 0:00:00]} Be6 {[%emt 0:00:05]} 46. Rc6 {[%emt 0:00:00]} (46. Nd6+ Bxd6+ 47. Kxd6 hxg3 48. hxg3 Kf6) 1-0

[Event "Czech Extraliga 2023-24"]
[Site "Czech Republic"]
[Date "2024.02.11"]
[Round "8.1"]
[White "UNI1 Haring Filip IM"]
[Black "NOV3 Harikrishna Pentala GM"]
[Result "0-1"]
[ECO "B47"]
[WhiteElo "2441"]
[BlackElo "2716"]
[Annotator "TA"]
[PlyCount "104"]
[EventDate "2023.10.14"]
[EventCountry "CZE"]
[SourceTitle "playchess.com"]
[Source "ChessBase"]
[SourceQuality "1"]
[TimeControl "40/5400+30:1800+30"]

{[%evp 29,104,41,32,4,19,0,8,15,37,29,35,-18,-11,-18,0,-65,-66,-70,-72,-73,-74,-80,-71,-62,-21,-28,-35,-34,-33,-35,-30,-26,-14,-13,0,0,0,-138,-148,-222,-222,-264,-249,-252,-256,-333,-341,-339,-331,-318,-310,-324,-310,-373,-363,-409,-390,-429,-439,-635,-644,-632,-441,-433,-408,-1121,-497,-468,-351,-1272,-426,-1141,-355,-382,-374,-434,-430]} 1. e4 {[%emt 0:00:13]} c5 {[%emt 0:02:44]} 2. Nf3 {[%emt 0:00:09]} e6 {[%emt 0:00:17]} 3. d4 {[%emt 0:01:18]} cxd4 {[%emt 0:00:06]} 4. Nxd4 {[%emt 0:00:06]} Nc6 {[%emt 0:00:05]} 5. Nc3 {[%emt 0:00:09]} Qc7 {[%emt 0:00:12]} 6. g3 {[%emt 0:03:08]} a6 {[%emt 0:01:14]} 7. Bg2 {[%emt 0:00:08]} Nge7 {[%emt 0:03:34]} 8. Nb3 {[%emt 0:03:21]} Ng6 {[%emt 0:03:45]} 9. O-O {[%emt 0:01:44] B47: Sicilian: Taimanov: 5 Nc3 Qc7 6 f4, 6 g3 and 6 Be2.} h5 $5 {[%emt 0:00:46][%mdl 4] Exploring less charted territory.} 10. h4 {[%emt 0:11:51]} Nge5 {[%emt 0:02:58]} 11. Qe2 $146 {[%emt 0:03:30]} ({Predecessor:} 11. Bf4 d6 12. Qe2 Be7 13. Rfd1 Bd7 14. Nd4 Na5 15. a4 g6 16. Qe1 O-O 17. b3 {½-½ Rovid,K-Horvath,T HUN-Open Budapest 1981 (13)}) 11... d6 {[%emt 0:11:53]} 12. a4 {[%emt 0:02:06]} b6 {[%emt 0:01:55]} 13. Nd1 {[%emt 0:14:37]} Be7 {[%emt 0:04:34]} 14. f4 {[%emt 0:02:14]} Nd7 {[%emt 0:00:52]} 15. Bd2 {[%emt 0:04:58]} Bb7 {[%emt 0:02:32]} 16. Bc3 {[%emt 0:06:49]} Bf6 {[%emt 0:02:40]} 17. Bf3 {[%emt 0:03:32]} g6 {[%emt 0:07:48]} 18. Qd2 {[%emt 0:01:41]} Ne7 {[%emt 0:06:28]} 19. Bxf6 {[%emt 0:09:30]} Nxf6 {[%emt 0:00:20]} 20. Nc3 {[%emt 0:00:31]} ({Better is} 20. a5 $14) 20... O-O $11 {[%emt 0:05:07]} 21. Rad1 {[%emt 0:04:55]} d5 {[%emt 0:05:47]} 22. exd5 {[%emt 0:06:33]} (22. e5 $11 Ne4 23. Bxe4 dxe4 24. Qd6) 22... Nexd5 $15 {[%emt 0:01:37]} 23. Nxd5 {[%emt 0:00:07]} Bxd5 {[%emt 0:01:37]} 24. Bxd5 {[%emt 0:00:26]} Nxd5 {[%emt 0:00:13]} 25. Nd4 {[%emt 0:00:25]} Rad8 {[%emt 0:02:05]} 26. Qe2 {[%emt 0:05:10]} Qc5 {[%emt 0:03:32]} 27. c3 {[%emt 0:01:19]} Ne7 {[%emt 0:08:15]} 28. Qxa6 {[%emt 0:04:26]} Nf5 {[%emt 0:00:25]} 29. Qd3 {[%emt 0:00:05]} Rd5 {[%emt 0:02:20]} 30. Rf2 {[%emt 0:06:20]} Rfd8 {[%emt 0:04:46]} 31. Rfd2 $1 {[%emt 0:00:18]} e5 {[%emt 0:02:15]} 32. fxe5 $1 {[%emt 0:00:38]} Rxe5 {[%emt 0:00:05]} 33. Re2 {[%emt 0:03:59] [#]} (33. Qb5 $1 $11 Nxg3 34. Qxc5 Rxc5 35. Nf3 Rxd2 36. Rxd2) 33... Nxg3 $1 $17 {[%emt 0:04:13]} 34. Rxe5 {[%emt 0:00:06]} (34. Red2 $17 Nf5 35. Qb5 Nxh4 (35... Qc7 $2 36. Qc6 $17) 36. Qxc5 bxc5 37. Nc6 Rxd2 38. Rxd2) 34... Qxe5 $19 {[%emt 0:00:05]} 35. Rd2 {[%emt 0:01:05]} Nf5 {[%emt 0:02:56]} 36. Re2 {[%emt 0:00:26]} Qf4 {[%emt 0:03:00]} 37. Rf2 {[%emt 0:00:30]} Qxh4 {[%emt 0:00:44]} 38. Qf3 {[%emt 0:00:08]} Qg5+ {[%emt 0:01:11]} (38... Nxd4 39. Qxf7+ Kh8 40. cxd4 $17) 39. Kh1 {[%emt 0:00:32]} Nh6 {[%emt 0:02:19]} (39... Nxd4 40. Qxf7+ Kh8 41. cxd4 $15) 40. b4 {[%emt 0:00:54]} Rc8 {[%emt 0:01:52]} 41. b5 {[%emt 0:04:23]} Qc1+ {[%emt 0:04:48]} 42. Rf1 {[%emt 0:00:39]} Qa3 {[%emt 0:02:17]} ({Not} 42... Qxc3 43. Qxc3 Rxc3 44. a5 bxa5 45. Rb1 $17) 43. Nc6 {[%emt 0:02:56]} Re8 {[%emt 0:02:52]} (43... Qxa4 $2 {is the wrong capture.} 44. Ne7+ Kg7 45. Nxc8 $16) 44. a5 {[%emt 0:03:22]} (44. Qd3 $142) 44... bxa5 $19 {[%emt 0:00:38]} 45. Nd4 {[%emt 0:01:08]} a4 {[%emt 0:03:17]} 46. Qc6 {[%emt 0:02:51]} Qe7 {[%emt 0:02:11]} 47. b6 {[%emt 0:01:13]} (47. Nf3 $142 Qd8 48. Kg1) 47... Ng4 {[%emt 0:04:31]} (47... Qh4+ $142 48. Kg2 Re3) 48. Nf3 {[%emt 0:01:02]} Rb8 {[%emt 0:00:21]} 49. c4 $2 {[%emt 0:02:35]} (49. Re1 Qb7 50. Qxb7 Rxb7 51. Rb1) 49... a3 {[%emt 0:01:36]} (49... Qe2 $142 50. Rb1 Nf2+ 51. Kg1 Ne4) 50. Re1 {[%emt 0:01:58]} (50. Qc7 $142 Qxc7 51. bxc7) 50... Qf6 $2 {[%emt 0:02:19]} (50... Qb4 51. c5 a2) 51. Qxf6 $19 {[%emt 0:00:38]} Nxf6 {[%emt 0:00:04]} 52. c5 {[%emt 0:00:30]} Nd7 {[%emt 0:00:56]} 0-1

[Event "Czech Extraliga 2023-24"]
[Site "Czech Republic"]
[Date "2024.02.11"]
[Round "8.2"]
[White "NOV4 Navara David GM"]
[Black "UNI3 Cernousek Lukas IM"]
[Result "1-0"]
[ECO "D02"]
[WhiteElo "2689"]
[BlackElo "2454"]
[Annotator "TA"]
[PlyCount "51"]
[EventDate "2023.10.14"]
[EventCountry "CZE"]
[SourceTitle "playchess.com"]
[Source "ChessBase"]
[SourceQuality "1"]
[TimeControl "40/5400+30:1800+30"]

{[%evp 9,51,0,0,0,0,0,0,0,0,0,0,0,0,-15,-30,-13,-20,-40,-22,-26,-21,-15,-38,-15,-18,-17,-25,-35,-8,-15,11,22,29,25,33,34,133,49,254,67,102,43,187,184]} 1. d4 {[%emt 0:00:02]} d5 {[%emt 0:00:05]} 2. Nf3 {[%emt 0:00:05]} Nf6 {[%emt 0:00:07]} 3. Bf4 {[%emt 0:00:05]} c5 {[%emt 0:00:08]} 4. e3 {[%emt 0:00:03]} Nc6 {[%emt 0:00:17]} 5. Nbd2 {[%emt 0:00:05]} Qb6 {[%emt 0:00:33][%csl LRb2,LRd4]} 6. dxc5 {[%emt 0:00:11]} Qxb2 {[%emt 0:00:09]} 7. Rb1 {[%emt 0:00:40]} Qc3 {[%emt 0:00:20][%cal Og7g6]} 8. Bb5 {[%emt 0:00:17] The position is equal.} e6 {[%emt 0:00:28][%cal Of8e7]} 9. O-O {[%emt 0:06:08]} Be7 {[%emt 0:00:03][%cal Oe8g8]} 10. Ne5 {[%emt 0:05:02]} Bd7 {[%emt 0:00:02]} 11. Nd3 {[%emt 0:00:12]} O-O {[%emt 0:00:10]} 12. Nb3 {[%emt 0:08:29]} b6 {[%emt 0:15:01]} 13. a4 {[%emt 0:15:07][%cal Ob3d4]} Ne4 {[%emt 0:22:39][%cal Re4c5]} (13... bxc5 $6 14. Nbxc5 Be8 (14... Bxc5 15. Rb3 $16) 15. Nb7 $11) 14. Bxc6 {[%emt 0:05:04]} Bxc6 {[%emt 0:00:04]} 15. Be5 {[%emt 0:00:33] Against Bf6} Qc4 {[%emt 0:01:21][%cal Rb6c5]} 16. Nd4 {[%emt 0:03:08] [#] Rb4 would now be deadly.} Be8 {[%emt 0:33:48]} (16... Qxa4 $2 17. Rb4 $18 (17. cxb6 Bb7 $16)) 17. cxb6 {[%emt 0:08:27]} axb6 {[%emt 0:00:42]} (17... Qxa4 $2 18. b7 Bd7 19. bxa8=N $18 (19. b8=N Be8 $18) (19. bxa8=Q Rxa8 20. Rb7 Rd8 $18)) 18. Rxb6 {[%emt 0:00:14][%cal Oe5g7]} Bxa4 {[%emt 0:06:31]} (18... Rxa4 $2 19. Nb2 Qa2 (19... Nc3 $2 20. Qe1 $18) 20. Nxa4 Qxa4 21. Rb7 $18) (18... Qxa4 19. Qg4 Bg5 20. Rb7 $11) 19. Rb7 {[%emt 0:02:28]} Bd6 {[%emt 0:05:18] [#]} 20. Bxg7 $1 {[%emt 0:21:16]} Bxc2 {[%emt 0:12:09] This pair of bishops is nice.} (20... Kxg7 21. Nxe6+) 21. Qg4 {[%emt 0:19:07]} f5 $1 {[%emt 0:00:01]} 22. Qh5 $40 {[%emt 0:01:13][%mdl 128] White has some attack. The board is on fire.} (22. Bxf8+ $2 fxg4 23. Bxd6 Nxd6 $19 (23... Qxd3 $2 24. Be5 $19)) 22... Qxd3 {[%emt 0:00:02]} ({Better is} 22... Qc8 $14 23. Bxf8 Qxb7 24. Nxc2 (24. Bxd6 Bxd3 25. Rd1 Nxd6 $11) 24... Bxf8) 23. Nxc2 {[%emt 0:00:37]} (23. Nxe6 Qa6 (23... Nd2 $2 24. Rc1 $18) 24. Nxf8 Rxf8) (23. Bxf8 $2 Qxf1+ 24. Kxf1 Ra1+ 25. Ke2 Bd1+ 26. Kd3 Nc5+ (26... Bxh5 $2 27. Bxd6 Nxd6 28. Rd7 $19) (26... Nxf2+ 27. Kc3 $19) 27. Kc3 Bxh5 $19) (23. Nc6 $16 {[%cal Og7e5] White threatens Be5! and mate.} Qa6 24. Ne7+ Bxe7 25. Rxe7) 23... Rab8 $2 {[%emt 0:00:02]} (23... Nd2 $2 24. Re1 (24. Rc1 f4 $18) 24... Rab8 25. Bxf8 Rxb7 26. Bxd6 $18) (23... Qa6 $1 $14 24. Bxf8 Qxb7) 24. Bxf8 $2 {[%emt 0:02:08]} (24. Rd7 $18 {[%cal Og7b2] White wants to mate with Bb2!} Rbd8 25. Rxd8 Rxd8 26. Nd4) 24... Rxb7 $14 {[%emt 0:00:03]} 25. Bh6 {[%emt 0:01:47]} (25. Ne1 $16 Qc3 26. Bxd6 Nxd6 27. Qh6) 25... Rf7 {[%emt 0:02:23]} ({Black should play} 25... Rb8 $1 $14 26. f3 (26. Nd4 Bxh2+ 27. Kxh2 Qxf1 $11) 26... Qxc2 27. fxe4 dxe4 (27... Qxe4 $2 {perishes.} 28. Qg5+ Kf7 29. Qg7+ Ke8 30. Qg8+ Kd7 31. Qxh7+ Be7 32. Bg5 $18)) 26. Nd4 {[%emt 0:01:02] Weighted Error Value: White=0.27 (precise) /Black=0.29 (precise) .  Loses game:     	---       	Black=1      Missed win:     	White=1     	---        Mistake:       	White=2     	Black=2      Inaccurate:     	---       	Black=2      OK:         	White=10    	Black=10     Best:        	White=1     	---        Strong:       	---       	Black=1} 1-0